bitfinex-derivatives/quotes_ETHF0:USTF0_20250507
["timestamp","ask_amount","ask_price","bid_price","bid_amount"]
[1746619268179,3.63651,1837.8,1837.7,4.123]
[1746619268576,3.63651,1837.8,1837.7,1.08837]
[1746619269277,7.23651,1837.8,1837.7,1.08837]
[1746619269675,7.23651,1837.8,1837.7,1.89397]
[1746619271184,7.23651,1837.8,1837.7,1.08837]
[1746619272083,1.08843,1837.7,1837.6,1.08838]
[1746619272280,3.65073,1837.7,1837.6,1.08838]
[1746619273077,7.25073,1837.7,1837.6,1.08838]
[1746619273683,6.42393,1837.7,1837.6,1.08838]
[1746619273883,5.3355,1837.7,1837.6,2.73398]
[1746619274086,2.82387,1837.7,1837.6,2.73398]
[1746619275190,6.42387,1837.7,1837.6,2.73398]
[1746619276298,6.42387,1837.7,1837.6,1.08838]
[1746619277000,1.08843,1837.6,1837.5,5.21044]
[1746619277297,3.54613,1837.6,1837.5,5.21044]
[1746619278901,3.54613,1837.6,1837.5,6.01224]
[1746619279096,7.14613,1837.6,1837.5,7.76274]
[1746619281197,3.54613,1837.6,1837.5,7.76274]
[1746619283402,1.6135,1837.6,1837.5,7.76274]
[1746619286604,1.08842,1837.7,1837.6,1.08843]
[1746619286904,1.08842,1837.7,1837.6,2.82493]
[1746619289107,7.72695,1837.8,1837.7,1.08837]
[1746619289510,7.72695,1837.8,1837.7,1.89447]
[1746619290209,11.32695,1837.8,1837.7,1.89447]
[1746619291109,11.32695,1837.8,1837.7,1.08837]
[1746619292106,2.72092,1837.7,1837.3,21.35690493]
[1746619292311,4.29634,1837.5,1837.4,7.26436932]
[1746619292811,6.68944,1837.5,1837.4,7.26436932]
[1746619293105,10.28944,1837.5,1837.4,7.26436932]
[1746619294908,1.08854,1837.4,1837.3,10.88473561]
[1746619295107,2.73604,1837.4,1837.3,10.88473561]
[1746619296116,6.33604,1837.4,1837.3,10.88473561]
[1746619296616,1.08878,1837.0,1836.9,7.71879]
[1746619299113,4.68878,1837.0,1836.9,7.71879]
[1746619299513,4.68878,1837.0,1836.9,4.122]
[1746619299717,7.18468,1837.0,1836.9,5.21084]
[1746619300220,6.36088,1837.0,1836.9,5.21084]
[1746619300419,4.68878,1837.0,1836.9,6.81734]
[1746619300620,3.6,1837.0,1836.9,6.81734]
[1746619300922,4.68878,1837.0,1836.9,6.81734]
[1746619301121,1.08878,1837.0,1836.9,6.81734]
[1746619304326,2.75308,1837.0,1836.9,6.81734]
[1746619304921,3.57228,1837.0,1836.9,5.21084]
[1746619305322,3.57228,1837.0,1836.9,6.86894]
[1746619308834,2.75308,1837.0,1836.9,6.86894]
[1746619311127,1.08878,1837.0,1836.9,6.86894]
[1746619313624,4.29657,1837.1,1837.0,1.08878]
[1746619313822,4.29657,1837.1,1837.0,3.63028]
[1746619317440,4.29657,1837.1,1837.0,4.49338]
[1746619318141,1.08877,1837.1,1837.0,4.49338]
[1746619318541,4.29657,1837.1,1837.0,4.49338]
[1746619321043,1.08878,1837.0,1836.9,5.21078]
[1746619321241,2.84728,1837.0,1836.9,5.21078]
[1746619321645,2.84728,1837.0,1836.9,7.79818]
[1746619323341,6.44728,1837.0,1836.9,7.79818]
[1746619324248,1.0889,1836.8,1836.7,0.8745]
[1746619324448,1.0889,1836.8,1836.7,4.39916]
[1746619325051,2.686,1836.8,1836.7,4.39916]
[1746619325249,6.286,1836.8,1836.7,4.39916]
[1746619327351,9.4938,1836.8,1836.7,4.39916]
[1746619329351,5.8938,1836.8,1836.7,4.39916]
[1746619329657,5.8938,1836.8,1836.7,3.3102]
[1746619329955,5.8938,1836.8,1836.7,2.4357]
[1746619330147,9.4938,1836.8,1836.7,2.4357]
[1746619330757,9.4938,1836.8,1836.7,3.52466]
[1746619331156,1.08896,1836.7,1836.6,5.21196]
[1746619331453,2.71176,1836.7,1836.6,5.21196]
[1746619332863,2.71176,1836.7,1836.6,4.123]
[1746619333153,3.54836,1836.7,1836.6,4.123]
[1746619333342,1.08914,1836.4,1836.3,12.40653513]
[1746619334353,4.68914,1836.4,1836.3,12.40653513]
[1746619334556,4.68914,1836.4,1836.3,1.08918]
[1746619336360,5.49224,1836.4,1836.3,1.08918]
[1746619336870,5.49224,1836.4,1836.3,2.69828]
[1746619337563,1.0892,1836.3,1836.2,2.71712]
[1746619337754,2.7973,1836.3,1836.2,4.32622]
[1746619338367,2.7973,1836.3,1836.2,1.08922]
[1746619338562,2.7973,1836.3,1836.2,1.92022]
[1746619338762,2.7973,1836.3,1836.2,2.4431]
[1746619338969,1.08926,1836.2,1836.1,6.04766]
[1746619339161,2.84776,1836.2,1836.1,6.87866]
[1746619339563,2.84776,1836.2,1836.1,8.49076]
[1746619339763,6.05556,1836.2,1836.1,8.49076]
[1746619342482,6.05556,1836.2,1836.1,7.65536]
[1746619343277,9.65556,1836.2,1836.1,7.65536]
[1746619344173,6.05556,1836.2,1836.1,7.65536]
[1746619345978,4.29706,1836.2,1836.1,7.65536]
[1746619347178,3.2078,1836.2,1836.1,7.65536]
[1746619347779,4.29706,1836.2,1836.1,7.65536]
[1746619350080,7.89706,1836.2,1836.1,7.65536]
[1746619351283,10.36756,1836.2,1836.1,6.5661]
[1746619351484,11.18366,1836.2,1836.1,7.65541]
[1746619354483,11.18366,1836.2,1836.1,4.123]
[1746619356584,1.08955,1835.8,1835.6,6.84898]
[1746619356884,1.08955,1835.8,1835.7,3.6592]
[1746619357081,6.33405,1835.8,1835.7,3.6592]
[1746619357478,1.08961,1835.6,1835.5,1.08962]
[1746619357677,1.08967,1835.5,1835.4,1.90808]
[1746619357885,1.08973,1835.4,1835.3,1.7513]
[1746619358085,5.94202,1835.5,1835.4,1.08973]
[1746619358385,6.73492,1835.5,1835.4,1.08973]
[1746619358582,6.73492,1835.5,1835.4,1.7513]
[1746619358786,6.73492,1835.5,1835.4,2.84103]
[1746619363489,3.2078,1835.5,1835.4,2.84103]
[1746619363685,9.75857617,1836.0,1835.4,19.53677]
[1746619363984,9.75857617,1836.0,1835.9,1.08943]
[1746619364592,11.40277617,1836.0,1835.9,1.08943]
[1746619364790,11.40277617,1836.0,1835.9,2.74523]
[1746619365191,9.54138,1836.0,1835.9,2.74523]
[1746619367694,8.452,1836.0,1835.9,2.74523]
[1746619367889,9.54137,1836.0,1835.9,2.74523]
[1746619369501,6.8078,1836.0,1835.9,2.74523]
[1746619370194,1.08932,1836.1,1836.0,1.08937]
[1746619370384,1.08932,1836.1,1836.0,2.74787]
[1746619370897,1.08932,1836.1,1836.0,1.6585]
[1746619371195,1.08937,1836.0,1835.9,1.08938]
[1746619371397,1.08943,1835.9,1835.8,2.71084]
[1746619371595,2.80553,1835.9,1835.8,4.36934]
[1746619371797,3.67773,1835.9,1835.8,21.16144]
[1746619372293,7.27773,1835.9,1835.8,17.6]
[1746619372497,1.08955,1835.7,1835.6,3.58187]
[1746619372797,4.29735,1835.7,1835.6,3.58187]
[1746619373001,4.29735,1835.7,1835.6,21.18187]
[1746619373297,7.89735,1835.7,1835.6,21.18187]
[1746619374198,4.29735,1835.7,1835.6,21.18187]
[1746619382305,6.04025,1835.7,1835.6,21.18187]
[1746619383815,6.04025,1835.7,1835.6,18.68957]
[1746619384007,6.90325,1835.7,1835.6,1.08957]
[1746619384404,6.90325,1835.7,1835.6,18.68957]
[1746619385512,3.69545,1835.7,1835.6,18.68957]
[1746619385712,6.90325,1835.7,1835.6,18.68957]
[1746619388212,6.90325,1835.7,1835.6,1.08957]
[1746619388909,6.90325,1835.7,1835.5,2.76712]
[1746619388910,1.08961,1835.6,1835.5,2.76712]
[1746619389115,1.08961,1835.6,1835.5,1.08962]
[1746619389412,1.08967,1835.5,1835.4,4.129]
[1746619389814,1.08967,1835.5,1835.4,5.21873]
[1746619389815,2.81637,1835.5,1835.4,5.21873]
[1746619390313,6.02417,1835.5,1835.4,4.129]
[1746619390616,6.02417,1835.5,1835.4,5.21873]
[1746619391117,9.62417,1835.5,1835.4,5.21873]
[1746619393111,6.02417,1835.5,1835.4,5.21873]
[1746619393705,6.02417,1835.5,1835.4,6.82983]
[1746619393911,6.01973101,1835.5,1835.4,6.82983]
[1746619394120,6.01973101,1835.5,1835.4,5.21873]
[1746619395619,1.08973,1835.4,1835.3,1.08975]
[1746619395811,3.67613,1835.4,1835.3,1.08975]
[1746619396412,7.27613,1835.4,1835.3,1.08975]
[1746619400319,7.27613,1835.4,1835.3,2.69795]
[1746619402617,10.48393,1835.4,1835.3,2.69795]
[1746619404233,6.88393,1835.4,1835.3,2.69795]
[1746619405233,10.48393,1835.4,1835.3,2.69795]
[1746619407234,6.88393,1835.4,1835.3,2.69795]
[1746619407435,6.03373,1835.4,1835.3,2.69795]
[1746619407733,6.03373,1835.4,1835.3,3.49695]
[1746619411745,6.03373,1835.4,1835.3,2.4072]
[1746619412344,6.03373,1835.4,1835.3,3.49699]
[1746619412646,6.03373,1835.4,1835.3,2.4072]
[1746619412946,1.08979,1835.3,1835.2,0.8795]
[1746619413250,2.71099,1835.3,1835.2,1.7547]
[1746619413637,2.71099,1835.3,1835.2,3.4494]
[1746619414044,1.08985,1835.2,1835.1,4.131]
[1746619414343,3.51045,1835.2,1835.1,4.131]
[1746619414539,4.32925,1835.2,1835.1,4.131]
[1746619415148,11.13705,1835.2,1835.1,4.131]
[1746619415437,11.13705,1835.2,1835.0,2.5288]
[1746619415438,1.08991,1835.1,1835.0,2.5288]
[1746619415642,2.81791,1835.1,1835.0,2.5288]
[1746619416046,2.81791,1835.1,1835.0,0.8341]
[1746619416342,1.08997,1835.0,1834.9,1.7004]
[1746619416644,6.02577,1835.0,1834.9,1.7004]
[1746619417140,9.62577,1835.0,1834.9,1.7004]
[1746619418846,1.09003,1834.9,1834.8,1.6597]
[1746619419046,3.53413,1834.9,1834.8,2.74979]
[1746619419241,3.53413,1834.9,1834.8,3.2675]
[1746619419443,3.53413,1834.9,1834.8,4.35759]
[1746619419645,3.53413,1834.9,1834.8,3.2675]
[1746619419844,4.32723,1834.9,1834.8,4.35759]
[1746619420144,1.09003,1834.9,1834.8,4.35759]
[1746619421149,2.71353,1834.9,1834.8,4.35759]
[1746619422450,1.09003,1834.9,1834.8,4.35759]
[1746619428252,4.69003,1834.9,1834.8,4.35759]
[1746619428958,3.6,1834.9,1834.8,4.35759]
[1746619429260,4.29782,1835.0,1834.9,1.09003]
[1746619429454,3.2078,1835.0,1834.9,2.84853]
[1746619429754,3.2078,1835.0,1834.9,7.84853]
[1746619430154,3.2078,1835.0,1834.9,6.44853]
[1746619431549,1.08991,1835.1,1835.0,1.08997]
[1746619431749,4.29771,1835.1,1835.0,2.69437]
[1746619432857,3.2078,1835.1,1835.0,2.69437]
[1746619433057,4.29771,1835.1,1835.0,2.69437]
[1746619435161,4.29771,1835.1,1835.0,6.29437]
[1746619435460,3.2078,1835.1,1835.0,6.29437]
[1746619435859,1.08983,1835.3,1835.2,1.08979]
[1746619436050,1.08983,1835.3,1835.2,1.95179]
[1746619436254,1.08983,1835.3,1835.2,3.61789]
[1746619438468,2.79623,1835.3,1835.2,3.61789]
[1746619443264,4.29756,1835.4,1835.3,1.08979]
[1746619443565,4.29756,1835.4,1835.3,2.81399]
[1746619443963,3.2078,1835.4,1835.3,2.81399]
[1746619444264,3.2078,1835.4,1835.3,6.41399]
[1746619445770,3.2078,1835.4,1835.3,24.01399]
[1746619446067,3.2078,1835.4,1835.3,28.14099]
[1746619446272,8.66919617,1835.6,1835.5,1.08967]
[1746619446868,8.66919617,1835.6,1835.5,2.39856097]
[1746619447068,3.2078,1835.6,1835.5,19.99856097]
[1746619447274,3.2078,1835.6,1835.5,19.55667]
[1746619447570,6.55088617,1835.8,1835.7,1.08955]
[1746619448867,8.27438617,1835.8,1835.7,1.08955]
[1746619449068,9.08288617,1835.8,1835.7,1.08955]
[1746619449273,12.68288617,1835.8,1835.7,1.08955]
[1746619449678,1.0896,1835.7,1835.6,1.08956]
[1746619449872,6.8679,1835.7,1835.6,1.08956]
[1746619450172,10.4679,1835.7,1835.6,1.08956]
[1746619450370,1.08961,1835.6,1835.5,18.68966]
[1746619450569,2.81311,1835.6,1835.5,18.68967]
[1746619452373,6.41311,1835.6,1835.5,18.68967]
[1746619454278,2.81311,1835.6,1835.5,18.68967]
[1746619454777,2.81311,1835.6,1835.5,19.48607]
[1746619455176,2.81311,1835.6,1835.5,23.08607]
[1746619455679,2.81311,1835.6,1835.5,3.6]
[1746619456172,1.08979,1835.3,1835.2,18.68981]
[1746619456777,2.80299,1835.3,1835.2,18.68981]
[1746619457278,6.40299,1835.3,1835.2,17.6]
[1746619457473,5.3132,1835.3,1835.1,1.08986]
[1746619457775,3.62385,1835.2,1835.1,1.08986]
[1746619457971,3.62385,1835.2,1835.1,18.68986]
[1746619458176,7.22385,1835.2,1835.1,18.68986]
[1746619458881,7.22385,1835.2,1835.1,17.6]
[1746619459077,10.43165,1835.2,1835.1,18.68991]
[1746619461076,7.22385,1835.2,1835.1,18.68991]
[1746619461281,10.43165,1835.2,1835.1,18.68991]
[1746619462182,10.43165,1835.2,1835.1,17.6]
[1746619463380,10.43165,1835.2,1835.1,18.68991]
[1746619464281,10.43165,1835.2,1835.1,17.6]
[1746619466275,10.43165,1835.2,1835.1,18.68991]
[1746619469293,10.43165,1835.2,1835.1,17.6]
[1746619469995,10.43165,1835.2,1834.8,4.95]
[1746619469996,1.09003,1834.9,1834.8,6.04004]
[1746619470197,1.09003,1834.9,1834.8,7.78864]
[1746619470495,2.80953,1834.9,1834.8,25.38864]
[1746619471097,6.40953,1834.9,1834.8,25.38864]
[1746619473302,4.69003,1834.9,1834.8,25.38864]
[1746619477404,6.42543,1834.9,1834.8,21.25564]
[1746619479804,6.42543,1834.9,1834.8,20.1656]
[1746619480304,6.42543,1834.9,1834.8,21.25569]
[1746619491417,1.09009,1834.8,1834.7,0.8383]
[1746619491711,1.09015,1834.7,1834.6,1.6193]
[1746619491913,1.09021,1834.6,1834.5,0.8239]
[1746619492112,4.29801,1834.6,1834.5,3.53346]
[1746619492516,4.29801,1834.6,1834.5,2.4432]
[1746619492718,4.29801,1834.6,1834.5,3.53346]
[1746619493214,7.89801,1834.6,1834.5,3.53346]
[1746619494118,4.29801,1834.6,1834.5,3.53346]
[1746619494619,4.29801,1834.6,1834.5,2.4432]
[1746619495519,4.29801,1834.6,1834.5,3.53346]
[1746619495817,4.29801,1834.6,1834.5,2.4432]
[1746619496912,3.2078,1834.6,1834.5,3.53346]
[1746619497116,1.09015,1834.7,1834.6,1.09015]
[1746619497316,1.09015,1834.7,1834.6,3.54235]
[1746619500619,6.86874,1834.8,1834.7,1.09015]
[1746619500815,6.86874,1834.8,1834.7,2.69215]
[1746619501020,4.29794,1834.8,1834.7,2.69215]
[1746619502322,6.03984,1834.8,1834.7,2.69215]
[1746619503021,6.03984,1834.8,1834.7,1.602]
[1746619504120,6.03984,1834.8,1834.7,2.69215]
[1746619504618,6.03984,1834.8,1834.7,1.602]
[1746619505712,1.09021,1834.6,1834.5,1.91413]
[1746619505918,1.09021,1834.6,1834.5,3.65783]
[1746619506319,2.73691,1834.6,1834.5,3.65783]
[1746619507024,5.94471,1834.6,1834.5,3.65783]
[1746619510732,2.73691,1834.6,1834.5,3.65783]
[1746619511129,5.94471,1834.6,1834.5,3.65783]
[1746619514533,2.73691,1834.6,1834.5,3.65783]
[1746619515928,1.09021,1834.6,1834.5,3.65783]
[1746619516932,2.82471,1834.6,1834.5,3.65783]
[1746619522838,1.09026,1834.5,1834.4,1.9283]
[1746619523135,2.83266,1834.5,1834.4,1.9283]
[1746619524533,2.83266,1834.5,1834.4,1.0903]
[1746619524935,3.66946,1834.5,1834.4,1.0903]
[1746619525137,1.09032,1834.4,1834.3,17.6]
[1746619525431,1.09044,1834.2,1834.1,14.03012099]
[1746619525637,1.09044,1834.2,1834.1,15.12062099]
[1746619526134,1.09044,1834.2,1834.1,32.72062099]
[1746619526437,4.29824,1834.2,1834.1,32.72062099]
[1746619528341,4.29824,1834.2,1834.1,25.4466]
[1746619530338,4.29824,1834.2,1834.1,21.728]
[1746619530543,5.15094,1834.2,1834.1,22.8185]
[1746619531034,1.0905,1834.1,1834.0,2.4569]
[1746619531229,3.4885,1834.1,1834.0,0.8447]
[1746619531643,3.4885,1834.1,1834.0,18.4447]
[1746619532045,3.4885,1834.1,1833.7,7.27402099]
[1746619532046,1.09068,1833.8,1833.7,7.27402099]
[1746619532845,3.50078,1833.8,1833.7,7.27402099]
[1746619533147,7.10078,1833.8,1833.7,7.27402099]
[1746619534153,3.50078,1833.8,1833.7,7.27402099]
[1746619536852,3.50078,1833.8,1833.6,13.69653561]
[1746619536853,1.09074,1833.7,1833.6,2.8118]
[1746619537054,4.29854,1833.7,1833.6,1.0908]
[1746619537846,3.2078,1833.7,1833.6,1.0908]
[1746619538047,4.29854,1833.7,1833.6,1.0908]
[1746619541047,1.0908,1833.6,1833.5,23.92201]
[1746619541248,1.0908,1833.6,1833.5,20.32201]
[1746619541652,6.0587,1833.7,1833.6,1.0908]
[1746619541951,4.2986,1833.7,1833.6,1.0908]
[1746619543454,1.0908,1833.6,1833.5,20.32202]
[1746619543653,2.7414,1833.6,1833.5,19.50422]
[1746619544045,3.6063,1833.6,1833.5,17.6]
[1746619544245,7.2063,1833.6,1833.5,17.6]
[1746619545149,3.6063,1833.6,1833.5,17.6]
[1746619545345,2.72717,1833.5,1833.1,1.09106]
[1746619545550,1.09104,1833.2,1833.1,1.09106]
[1746619550160,1.09104,1833.2,1833.1,2.82056]
[1746619551360,1.09104,1833.2,1833.0,22.0352]
[1746619551361,1.0911,1833.1,1833.0,22.0352]
[1746619551861,2.8137,1833.1,1833.0,22.0352]
[1746619552060,2.8137,1833.1,1833.0,23.12636]
[1746619552260,2.8137,1833.1,1833.0,21.22366]
[1746619552949,2.8137,1833.1,1833.0,20.1325]
[1746619553156,4.8956,1833.2,1833.1,1.0911]
[1746619553157,0.8393,1833.2,1833.1,1.0911]
[1746619553357,1.93034,1833.2,1833.1,2.7884]
[1746619553558,1.09104,1833.2,1833.1,2.7884]
[1746619554463,2.80174,1833.2,1833.1,2.7884]
[1746619556266,4.29876,1833.4,1833.3,1.09098]
[1746619556466,6.80946,1833.4,1833.3,1.09098]
[1746619556868,5.95166,1833.4,1833.3,1.09098]
[1746619557069,5.95166,1833.4,1833.3,3.61168]
[1746619557270,5.95166,1833.4,1833.3,7.21168]
[1746619561765,5.95162,1833.4,1833.3,7.21168]
[1746619561970,3.2078,1833.4,1833.3,7.21168]
[1746619562174,4.29872,1833.4,1833.3,6.1207]
[1746619562365,4.29872,1833.4,1833.3,7.21168]
[1746619563672,1.09092,1833.4,1833.3,7.21168]
[1746619564973,4.29872,1833.4,1833.3,7.21168]
[1746619566577,3.2078,1833.4,1833.3,7.21168]
[1746619566777,4.29872,1833.4,1833.3,7.21168]
[1746619567081,3.2078,1833.4,1833.3,7.21168]
[1746619569676,1.09086,1833.6,1833.5,1.09086]
[1746619570182,1.09086,1833.6,1833.5,4.69086]
[1746619570382,2.77846,1833.6,1833.5,4.69086]
[1746619570579,2.77846,1833.6,1833.5,3.6]
[1746619571279,2.77846,1833.6,1833.4,1.09087]
[1746619571280,1.09086,1833.5,1833.4,1.09087]
[1746619571579,5.98626,1833.5,1833.4,1.09087]
[1746619572781,1.09092,1833.4,1833.3,3.57723]
[1746619572984,4.46462,1833.4,1833.3,1.09093]
[1746619574381,1.09098,1833.3,1833.2,7.7834]
[1746619574579,6.02918,1833.3,1833.2,7.7834]
[1746619574885,6.02918,1833.3,1833.2,4.135]
[1746619575075,6.02918,1833.3,1833.2,5.22604]
[1746619575274,6.02918,1833.3,1833.2,1.09104]
[1746619575785,1.09104,1833.2,1833.1,3.64846]
[1746619575977,2.82144,1833.2,1833.1,3.64846]
[1746619576983,2.82144,1833.2,1833.1,1.09106]
[1746619577185,1.0911,1833.1,1833.0,22.82611]
[1746619577385,3.605,1833.1,1833.0,22.82611]
[1746619578575,3.59983813,1833.1,1833.0,22.82611]
[1746619579788,3.59983813,1833.1,1833.0,24.45301]
[1746619579983,1.09109,1833.2,1833.1,1.0911]
[1746619580184,1.09109,1833.2,1833.1,2.718]
[1746619580884,2.74989,1833.2,1833.1,2.718]
[1746619582289,2.74989,1833.2,1833.1,1.6269]
[1746619582790,1.0911,1833.1,1833.0,3.6]
[1746619582991,6.8055,1833.1,1833.0,3.6]
[1746619583189,1.09134,1832.7,1832.6,7.65065]
[1746619583688,1.09134,1832.7,1832.6,25.25065]
[1746619584081,3.59554,1832.7,1832.6,24.42625]
[1746619584287,3.59554,1832.7,1832.6,24.4263]
[1746619585089,3.59554,1832.7,1832.6,23.3349]
[1746619585386,3.59554,1832.7,1832.6,21.742]
[1746619586486,3.59554,1832.7,1832.6,22.8334]
[1746619586787,3.59554,1832.7,1832.6,24.4236]
[1746619586986,3.59554,1832.7,1832.6,23.3322]
[1746619587187,3.59554,1832.7,1832.6,24.4236]
[1746619587593,3.59554,1832.7,1832.6,20.2816]
[1746619589194,3.59554,1832.7,1832.6,18.6914]
[1746619589195,6.80334,1832.7,1832.6,18.6914]
[1746619589886,1.0914,1832.6,1832.5,6.37051]
[1746619590092,1.0914,1832.6,1832.5,8.12691]
[1746619590093,2.7508,1832.6,1832.5,8.12691]
[1746619590992,1.6594,1832.6,1832.5,8.12691]
[1746619591293,5.09278,1832.7,1832.6,1.0914]
[1746619591492,4.0014,1832.7,1832.6,2.7306]
[1746619591696,4.29914,1832.7,1832.6,2.7306]
[1746619591991,1.0914,1832.6,1832.5,3.6]
[1746619592188,4.459,1832.6,1832.5,3.6]
[1746619597792,2.72868,1832.5,1832.1,5.8286]
[1746619598098,1.09163,1832.2,1832.1,5.8286]
[1746619598595,3.58343,1832.2,1832.1,5.8286]
[1746619599101,3.58343,1832.2,1832.1,6.92029]
[1746619600099,3.58343,1832.2,1832.1,1.6866]
[1746619600800,1.09169,1832.1,1832.0,23.11244]
[1746619600998,5.97919,1832.1,1832.0,24.79304]
[1746619601198,5.97919,1832.1,1832.0,23.7013]
[1746619601398,5.97919,1832.1,1832.0,22.8806]
[1746619602400,5.97919,1832.1,1832.0,21.2]
[1746619603106,5.97919,1832.1,1832.0,3.6]
[1746619604004,4.29949,1832.1,1832.0,6.34105]
[1746619604801,1.09169,1832.1,1832.0,6.34105]
[1746619606504,1.09168,1832.2,1832.1,1.09164]
[1746619606702,1.09168,1832.2,1832.1,3.53104]
[1746619607208,4.29941,1832.3,1832.2,1.09163]
[1746619607398,4.29941,1832.3,1832.2,3.50623]
[1746619608107,3.2078,1832.3,1831.9,17.6]
[1746619608310,4.29949,1832.1,1832.0,2.4146]
[1746619609110,4.29949,1832.1,1832.0,6.0146]
[1746619609510,6.00129,1832.1,1832.0,6.0146]
[1746619612609,4.29949,1832.1,1832.0,6.0146]
[1746619612812,1.09169,1832.1,1832.0,6.0146]
[1746619613214,1.09169,1832.1,1832.0,7.10635]
[1746619615416,1.09167,1832.2,1832.1,1.09163]
[1746619615610,1.09167,1832.2,1832.1,2.83853]
[1746619618614,1.09167,1832.2,1832.1,1.7469]
[1746619618911,1.09167,1832.2,1832.1,2.83859]
[1746619619414,1.09167,1832.2,1832.1,1.7469]
[1746619619619,1.09167,1832.2,1832.1,2.83859]
[1746619619923,3.2078,1832.3,1832.2,1.09163]
[1746619620118,1.09157,1832.4,1832.3,1.09157]
[1746619620317,1.09157,1832.4,1832.3,2.72157]
[1746619620618,1.09157,1832.4,1832.3,3.59567]
[1746619620820,1.09148,1832.5,1832.4,1.09145]
[1746619621118,1.09148,1832.5,1832.4,6.32145]
[1746619621321,3.2078,1832.7,1832.6,1.0914]
[1746619622025,1.0914,1832.6,1832.5,3.56261]
[1746619622223,1.0914,1832.6,1832.5,7.16261]
[1746619623526,4.29918,1832.7,1832.6,1.0914]
[1746619623723,4.29918,1832.7,1832.6,2.7819]
[1746619624021,4.29918,1832.7,1832.6,1.6905]
[1746619624723,4.29918,1832.7,1832.6,2.7819]
[1746619625112,4.29918,1832.7,1832.6,1.6905]
[1746619625423,4.29918,1832.7,1832.6,2.7819]
[1746619626625,6.02088,1832.7,1832.6,2.7819]
[1746619627324,4.29918,1832.7,1832.6,2.7819]
[1746619630929,1.09138,1832.7,1832.6,2.7819]
[1746619634636,3.62733,1832.8,1832.7,1.09134]
[1746619634834,3.62733,1832.8,1832.7,3.57874]
[1746619635135,3.62733,1832.8,1832.7,7.17874]
[1746619635637,1.91277,1832.9,1832.8,1.09128]
[1746619635837,3.2078,1833.1,1832.9,1.09122]
[1746619636136,1.09116,1833.0,1832.9,1.09122]
[1746619636323,1.09116,1833.0,1832.9,2.73252]
[1746619636527,2.70846,1833.0,1832.9,1.6413]
[1746619636733,2.70846,1833.0,1832.9,1.09122]
[1746619636924,3.52026,1833.0,1832.9,1.09122]
[1746619637129,3.52026,1833.0,1832.9,4.69122]
[1746619637336,1.09116,1833.0,1832.9,4.69122]
[1746619637539,1.09116,1833.0,1832.9,6.37952]
[1746619638738,2.71776,1833.0,1832.9,6.37952]
[1746619640640,2.71776,1833.0,1832.9,5.2883]
[1746619640841,2.71776,1833.0,1832.9,3.6]
[1746619641041,3.53536,1833.0,1832.9,3.6]
[1746619645639,8.53536,1833.0,1832.9,9.32e-06]
[1746619646139,1.0914,1832.6,1832.5,0.7974]
[1746619646340,4.2992,1832.6,1832.5,0.7974]
[1746619647243,5.9259,1832.6,1832.5,5.48885]
[1746619647446,5.9259,1832.6,1832.5,7.13125]
[1746619647651,1.0914,1832.6,1832.5,7.13125]
[1746619648647,1.09139,1832.7,1832.6,1.0914]
[1746619648840,1.09139,1832.7,1832.6,2.7338]
[1746619649538,1.09133,1832.8,1832.7,1.09134]
[1746619649739,1.09133,1832.8,1832.7,3.54744]
[1746619650342,1.09133,1832.8,1832.7,6.0561]
[1746619650938,6.83543,1832.8,1832.7,6.0561]
[1746619651340,3.62763,1832.8,1832.7,7.14744]
[1746619654750,2.79803,1832.8,1832.7,7.14744]
[1746619662346,1.09133,1832.8,1832.7,7.14744]
[1746619663855,1.09128,1832.8,1832.7,7.14744]
[1746619664166,1.09126,1832.9,1832.8,1.09122]
[1746619664351,1.09126,1832.9,1832.8,3.57352]
[1746619665158,1.09126,1832.9,1832.8,7.17352]
[1746619668952,5.1773,1833.0,1832.9,1.09122]
[1746619669152,5.46139617,1833.1,1833.0,1.09116]
[1746619669353,6.55249617,1833.1,1833.0,1.89046]
[1746619669650,6.55249617,1833.1,1833.0,3.64226]
[1746619669850,6.55249617,1833.1,1833.0,21.24226]
[1746619670160,6.55249617,1833.1,1833.0,24.84226]
[1746619670956,1.0911,1833.1,1833.0,24.84226]
[1746619671957,2.8433,1833.1,1833.0,24.84226]
[1746619673765,1.0911,1833.1,1833.0,24.84226]
[1746619674661,2.7913,1833.1,1833.0,24.84226]
[1746619676462,1.7002,1833.1,1833.0,24.84226]
[1746619676662,4.29886,1833.2,1833.1,1.0911]
[1746619676860,1.09106,1833.2,1833.1,3.6223]
[1746619678665,2.73702,1833.3,1833.2,1.09104]
[1746619678856,2.73702,1833.3,1833.2,2.76904]
[1746619679058,2.73702,1833.3,1833.2,6.36904]
[1746619680363,2.73702,1833.3,1833.2,3.6]
[1746619680758,2.73702,1833.3,1833.2,4.69104]
[1746619682364,5.94482,1833.3,1833.2,4.69104]
[1746619685267,5.94482,1833.3,1833.2,24.03974]
[1746619687169,3.2078,1833.3,1833.2,24.03974]
[1746619687370,4.29878,1833.3,1833.2,24.03974]
[1746619689766,5.91378,1833.3,1833.2,24.03974]
[1746619690670,4.29878,1833.3,1833.2,24.03974]
[1746619691574,5.91378,1833.3,1833.2,24.03974]
[1746619693170,3.2078,1833.3,1833.2,24.03974]
[1746619693363,4.29878,1833.3,1833.2,24.03974]
[1746619695081,5.92038,1833.3,1833.2,24.03974]
[1746619697173,3.2078,1833.3,1833.2,28.20374]